[Event "*** Titled Tuesday Blitz"]
[Site "Chess.com"]
[Date "2021.02.09"]
[Round "9"]
[White "GMBenjaminBok"]
[Black "12teen"]
[Result "1/2-1/2"]
[WhiteElo "2999"]
[BlackElo "2860"]
[TimeControl "180+1"]
[EndTime "11:46:18 PST"]
[Termination "Game drawn by repetition"]

1. d4 {[%clk 0:03:00.9]} 1... Nf6 {[%clk 0:02:54.2]} 2. c4 {[%clk 0:03:00.9]}
2... e6 {[%clk 0:02:54.4]} 3. Nc3 {[%clk 0:03:00.7]} 3... b6 {[%clk 0:02:55]} 4.
e4 {[%clk 0:02:58.2]} 4... Bb7 {[%clk 0:02:55.6]} 5. Bd3 {[%clk 0:02:29.9]} 5...
d5 {[%clk 0:02:53.8]} 6. cxd5 {[%clk 0:02:26.5]} 6... exd5 {[%clk 0:02:54.7]} 7.
e5 {[%clk 0:02:25.7]} 7... Ne4 {[%clk 0:02:54.6]} 8. Nf3 {[%clk 0:02:03]} 8...
Be7 {[%clk 0:02:35.7]} 9. O-O {[%clk 0:01:55.2]} 9... O-O {[%clk 0:02:35.3]} 10.
Qc2 {[%clk 0:01:54.9]} 10... Nxc3 {[%clk 0:02:23.3]} 11. bxc3 {[%clk 0:01:54.3]}
11... h6 {[%clk 0:02:19.7]} 12. Re1 {[%clk 0:01:33.2]} 12... Bc8 {[%clk
0:02:12.1]} 13. Qe2 {[%clk 0:00:42.7]} 13... Be6 {[%clk 0:02:05.3]} 14. Bc2
{[%clk 0:00:42.7]} 14... c5 {[%clk 0:01:15.4]} 15. Qd3 {[%clk 0:00:41.8]} 15...
g6 {[%clk 0:01:16.1]} 16. Bxh6 {[%clk 0:00:40.7]} 16... Re8 {[%clk 0:01:16.7]}
17. Qe3 {[%clk 0:00:36.4]} 17... Nc6 {[%clk 0:01:13.7]} 18. Rad1 {[%clk
0:00:33.7]} 18... Rc8 {[%clk 0:01:11.1]} 19. Bb1 {[%clk 0:00:31.9]} 19... Na5
{[%clk 0:01:10.5]} 20. Qf4 {[%clk 0:00:29.8]} 20... Nc4 {[%clk 0:01:05]} 21. h4
{[%clk 0:00:25.8]} 21... Na3 {[%clk 0:01:01.7]} 22. Bd3 {[%clk 0:00:17.1]} 22...
c4 {[%clk 0:01:02.2]} 23. Bf1 {[%clk 0:00:16.1]} 23... Nb5 {[%clk 0:01:02.8]}
24. Rc1 {[%clk 0:00:13.8]} 24... Ba3 {[%clk 0:01:03.2]} 25. Bg5 {[%clk
0:00:13.5]} 25... Be7 {[%clk 0:00:53.9]} 26. Bf6 {[%clk 0:00:13.3]} 26... Bxf6
{[%clk 0:00:48.8]} 27. exf6 {[%clk 0:00:13.4]} 27... Nd6 {[%clk 0:00:48.2]} 28.
h5 {[%clk 0:00:13.1]} 28... Ne4 {[%clk 0:00:46.5]} 29. hxg6 {[%clk 0:00:12.6]}
29... fxg6 {[%clk 0:00:45.9]} 30. Rxe4 {[%clk 0:00:09.8]} 30... dxe4 {[%clk
0:00:44.6]} 31. Ng5 {[%clk 0:00:10.2]} 31... Bf7 {[%clk 0:00:40.5]} 32. Nxe4
{[%clk 0:00:09.2]} 32... Rxe4 {[%clk 0:00:23.8]} 33. Qxe4 {[%clk 0:00:10.1]}
33... Qxf6 {[%clk 0:00:24.2]} 34. Re1 {[%clk 0:00:10.2]} 34... Re8 {[%clk
0:00:20.6]} 35. Qb1 {[%clk 0:00:10.2]} 35... Rd8 {[%clk 0:00:19]} 36. Qb5 {[%clk
0:00:09]} 36... Rd5 {[%clk 0:00:14.2]} 37. Qa6 {[%clk 0:00:07]} 37... Rh5 {[%clk
0:00:13.7]} 38. Qc8+ {[%clk 0:00:05.3]} 38... Kg7 {[%clk 0:00:14.1]} 39. g3
{[%clk 0:00:04]} 39... Qf3 {[%clk 0:00:14.1]} 40. Bg2 {[%clk 0:00:04.1]} 40...
Qxc3 {[%clk 0:00:14.7]} 41. Re3 {[%clk 0:00:01.4]} 41... Qc1+ {[%clk 0:00:14.2]}
42. Bf1 {[%clk 0:00:01.8]} 42... Rh1+ {[%clk 0:00:13.7]} 43. Kxh1 {[%clk
0:00:02.3]} 43... Qxf1+ {[%clk 0:00:14.4]} 44. Kh2 {[%clk 0:00:02.9]} 44...
Qxf2+ {[%clk 0:00:15.1]} 45. Kh3 {[%clk 0:00:03.4]} 45... Qxe3 {[%clk
0:00:15.8]} 46. Qc7 {[%clk 0:00:03.3]} 46... Qe6+ {[%clk 0:00:16]} 47. Kh2
{[%clk 0:00:03.1]} 47... Qe2+ {[%clk 0:00:15.9]} 48. Kh3 {[%clk 0:00:03.2]}
48... g5 {[%clk 0:00:08.8]} 49. d5 {[%clk 0:00:02]} 49... g4+ {[%clk 0:00:05.1]}
50. Kh4 {[%clk 0:00:02.5]} 50... Qe4 {[%clk 0:00:04.8]} 51. d6 {[%clk
0:00:02.4]} 51... Qh7+ {[%clk 0:00:04.9]} 52. Kg5 {[%clk 0:00:02.2]} 52... Qh5+
{[%clk 0:00:04.7]} 53. Kf4 {[%clk 0:00:02.4]} 53... Qh6+ {[%clk 0:00:05.3]} 54.
Kxg4 {[%clk 0:00:02.5]} 54... Qg6+ {[%clk 0:00:03.4]} 55. Kf4 {[%clk 0:00:03.1]}
55... Qf6+ {[%clk 0:00:03.6]} 56. Ke4 {[%clk 0:00:03.6]} 56... Qe6+ {[%clk
0:00:03.9]} 57. Kd4 {[%clk 0:00:03.8]} 57... Qd5+ {[%clk 0:00:04]} 58. Kc3
{[%clk 0:00:03.8]} 58... Qd3+ {[%clk 0:00:04.3]} 59. Kb4 {[%clk 0:00:04.4]}
59... a5+ {[%clk 0:00:03.6]} 60. Kb5 {[%clk 0:00:04.9]} 60... c3+ {[%clk
0:00:04]} 61. Kxb6 {[%clk 0:00:04.9]} 61... c2 {[%clk 0:00:04.6]} 62. d7 {[%clk
0:00:05.3]} 62... Qd4+ {[%clk 0:00:04]} 63. Kb7 {[%clk 0:00:05.3]} 63... Qb2+
{[%clk 0:00:04.3]} 64. Ka8 {[%clk 0:00:05.4]} 64... c1=Q {[%clk 0:00:04.8]} 65.
Qxc1 {[%clk 0:00:05.7]} 65... Qxc1 {[%clk 0:00:04.8]} 66. d8=Q {[%clk
0:00:06.6]} 66... Qc6+ {[%clk 0:00:04.9]} 67. Ka7 {[%clk 0:00:06.7]} 67... Bd5
{[%clk 0:00:05.6]} 68. Qe7+ {[%clk 0:00:06.2]} 68... Kg6 {[%clk 0:00:05.9]} 69.
g4 {[%clk 0:00:06.3]} 69... a4 {[%clk 0:00:05.4]} 70. g5 {[%clk 0:00:05.8]}
70... Bxa2 {[%clk 0:00:05.5]} 71. Qe5 {[%clk 0:00:05.2]} 71... Bd5 {[%clk
0:00:05.2]} 72. Qe7 {[%clk 0:00:05.5]} 72... a3 {[%clk 0:00:05.6]} 73. Qb4
{[%clk 0:00:05]} 73... Qb7+ {[%clk 0:00:04.7]} 74. Qxb7 {[%clk 0:00:04.8]} 74...
Bxb7 {[%clk 0:00:05.6]} 75. Kxb7 {[%clk 0:00:05.6]} 75... a2 {[%clk 0:00:06.1]}
76. Kc7 {[%clk 0:00:06.3]} 76... a1=N {[%clk 0:00:06.6]} 77. Kb8 {[%clk
0:00:06.9]} 77... Nc2 {[%clk 0:00:06.8]} 78. Kb7 {[%clk 0:00:07.2]} 78... Nd4
{[%clk 0:00:07.7]} 79. Kb8 {[%clk 0:00:07.9]} 79... Ne6 {[%clk 0:00:08.4]} 80.
Kb7 {[%clk 0:00:08.4]} 80... Nf4 {[%clk 0:00:09.3]} 81. Kb6 {[%clk 0:00:08.9]}
81... Nh5 {[%clk 0:00:10.1]} 82. Kb7 {[%clk 0:00:09.6]} 82... Ng3 {[%clk
0:00:11]} 83. Kb6 {[%clk 0:00:10.3]} 83... Ne4 {[%clk 0:00:11.9]} 84. Kb7 {[%clk
0:00:11.1]} 84... Nf2 {[%clk 0:00:12.8]} 85. Kc6 {[%clk 0:00:11.6]} 85... Nd3
{[%clk 0:00:13.7]} 86. Kb7 {[%clk 0:00:12.5]} 86... Nf4 {[%clk 0:00:14.6]} 87.
Kb6 {[%clk 0:00:13.4]} 87... Ng2 {[%clk 0:00:15.5]} 88. Kb7 {[%clk 0:00:14.2]}
88... Ne3 {[%clk 0:00:16.4]} 89. Kb6 {[%clk 0:00:15.1]} 89... Nf5 {[%clk
0:00:17.3]} 90. Kb7 {[%clk 0:00:16]} 90... Ng3 {[%clk 0:00:18.1]} 91. Kb6 {[%clk
0:00:16.9]} 91... Nh5 {[%clk 0:00:18.9]} 92. Kb7 {[%clk 0:00:17.8]} 92... Nf4
{[%clk 0:00:18.8]} 1/2-1/2

[Event "*** Titled Tuesday Blitz"]
[Site "Chess.com"]
[Date "2021.02.09"]
[Round "9"]
[White "profofchess"]
[Black "Guzman70"]
[Result "1-0"]
[WhiteElo "2406"]
[BlackElo "2240"]
[TimeControl "180+1"]
[EndTime "11:46:19 PST"]
[Termination "profofchess won by resignation"]

1. e4 {[%clk 0:03:00.9]} 1... g6 {[%clk 0:02:59.4]} 2. d4 {[%clk 0:03:00.6]}
2... Bg7 {[%clk 0:02:59.4]} 3. Nf3 {[%clk 0:03:01]} 3... d6 {[%clk 0:02:59.3]}
4. Bc4 {[%clk 0:03:01]} 4... e6 {[%clk 0:02:58.9]} 5. Qe2 {[%clk 0:03:00.1]}
5... a6 {[%clk 0:02:54.4]} 6. Bb3 {[%clk 0:02:59.6]} 6... b5 {[%clk 0:02:52.7]}
7. O-O {[%clk 0:02:47.8]} 7... Bb7 {[%clk 0:02:50.7]} 8. e5 {[%clk 0:02:37.8]}
8... d5 {[%clk 0:02:45.8]} 9. Ne1 {[%clk 0:02:16.3]} 9... c5 {[%clk 0:02:36.1]}
10. dxc5 {[%clk 0:02:14.8]} 10... Nd7 {[%clk 0:02:34.7]} 11. Nd3 {[%clk
0:02:14.9]} 11... Qc7 {[%clk 0:02:33.1]} 12. f4 {[%clk 0:02:07.2]} 12... Nxc5
{[%clk 0:02:21.7]} 13. Nxc5 {[%clk 0:02:07.1]} 13... Qxc5+ {[%clk 0:02:21.8]}
14. Be3 {[%clk 0:02:07.7]} 14... d4 {[%clk 0:02:13]} 15. Bf2 {[%clk 0:02:04.2]}
15... Ne7 {[%clk 0:02:07.9]} 16. Nd2 {[%clk 0:02:03.3]} 16... O-O {[%clk
0:02:00.4]} 17. Ne4 {[%clk 0:02:03]} 17... Qc6 {[%clk 0:01:56.5]} 18. Rae1
{[%clk 0:02:02.6]} 18... Nf5 {[%clk 0:01:50]} 19. Qd3 {[%clk 0:01:42.5]} 19...
Rfd8 {[%clk 0:01:35.4]} 20. g4 {[%clk 0:01:38.6]} 20... Ne3 {[%clk 0:01:14.3]}
21. Bxe3 {[%clk 0:01:38.3]} 21... Qxe4 {[%clk 0:00:59]} 22. Qxe4 {[%clk
0:01:38.1]} 22... Bxe4 {[%clk 0:00:59.2]} 23. Bd2 {[%clk 0:01:23.7]} 23... Bd5
{[%clk 0:00:53.6]} 24. Ba5 {[%clk 0:01:19.3]} 24... Bxb3 {[%clk 0:00:48.8]} 25.
Bxd8 {[%clk 0:01:14.2]} 25... Bxc2 {[%clk 0:00:48.5]} 26. Bb6 {[%clk 0:01:09.6]}
26... d3 {[%clk 0:00:47.1]} 27. Rf2 {[%clk 0:01:05.9]} 27... Bf8 {[%clk
0:00:45.5]} 28. a3 {[%clk 0:00:40.9]} 28... b4 {[%clk 0:00:42.6]} 29. Ba5 {[%clk
0:00:19.1]} 29... bxa3 {[%clk 0:00:41.2]} 30. bxa3 {[%clk 0:00:19.2]} 30... Bxa3
{[%clk 0:00:41]} 31. Kg2 {[%clk 0:00:15.2]} 31... Rc8 {[%clk 0:00:38.5]} 32. Kf3
{[%clk 0:00:14.4]} 32... Bc5 {[%clk 0:00:37]} 33. Rd2 {[%clk 0:00:14.2]} 33...
Rb8 {[%clk 0:00:32.2]} 34. Rc1 {[%clk 0:00:09]} 34... h6 {[%clk 0:00:28.7]} 35.
Rdxc2 {[%clk 0:00:08.4]} 35... dxc2 {[%clk 0:00:28.5]} 36. Rxc2 {[%clk
0:00:09.3]} 36... Rb5 {[%clk 0:00:28.8]} 37. Bd8 {[%clk 0:00:08.2]} 37... a5
{[%clk 0:00:23.6]} 38. Bf6 {[%clk 0:00:06.7]} 38... a4 {[%clk 0:00:22.4]} 39.
Rd2 {[%clk 0:00:06]} 39... Rb8 {[%clk 0:00:18.8]} 40. Rc2 {[%clk 0:00:03.5]}
40... Bf8 {[%clk 0:00:18.5]} 41. Rc4 {[%clk 0:00:02.7]} 41... a3 {[%clk
0:00:18.3]} 42. Ra4 {[%clk 0:00:02.7]} 42... Rb3+ {[%clk 0:00:15.6]} 43. Ke2
{[%clk 0:00:02.6]} 43... Rb2+ {[%clk 0:00:15]} 44. Kd3 {[%clk 0:00:03.1]} 44...
a2 {[%clk 0:00:14.1]} 45. h4 {[%clk 0:00:02.6]} 45... Rh2 {[%clk 0:00:11.7]} 46.
g5 {[%clk 0:00:02.7]} 46... hxg5 {[%clk 0:00:11.3]} 47. hxg5 {[%clk 0:00:02.8]}
47... Rf2 {[%clk 0:00:08.8]} 48. Kc3 {[%clk 0:00:03.1]} 48... Rxf4 {[%clk
0:00:07.6]} 49. Rxa2 {[%clk 0:00:03.3]} 49... Bg7 {[%clk 0:00:05.3]} 50. Kd3
{[%clk 0:00:03.2]} 50... Bxf6 {[%clk 0:00:04.6]} 51. exf6 {[%clk 0:00:03.6]}
51... Rf5 {[%clk 0:00:04.5]} 52. Ra8+ {[%clk 0:00:04]} 52... Kh7 {[%clk
0:00:04.6]} 53. Rf8 {[%clk 0:00:04.6]} 53... Rxg5 {[%clk 0:00:04.9]} 54. Rxf7+
{[%clk 0:00:04.9]} 54... Kh6 {[%clk 0:00:05.4]} 55. Re7 {[%clk 0:00:04.8]} 55...
e5 {[%clk 0:00:04.4]} 56. Re8 {[%clk 0:00:04.1]} 56... Rf5 {[%clk 0:00:04.5]}
57. Rh8+ {[%clk 0:00:03.8]} 57... Kg5 {[%clk 0:00:04.1]} 58. Ke4 {[%clk
0:00:03.7]} 58... Rxf6 {[%clk 0:00:04.2]} 59. Kxe5 {[%clk 0:00:02.1]} 59... Rf5+
{[%clk 0:00:04]} 60. Ke4 {[%clk 0:00:02.5]} 60... Rf7 {[%clk 0:00:04.3]} 61. Ke3
{[%clk 0:00:02.9]} 61... Rf5 {[%clk 0:00:03.9]} 62. Rh7 {[%clk 0:00:02.4]} 62...
Rf6 {[%clk 0:00:03.9]} 63. Ke2 {[%clk 0:00:02.2]} 63... Ra6 {[%clk 0:00:04.8]}
64. Rh8 {[%clk 0:00:02.1]} 64... Ra2+ {[%clk 0:00:05.7]} 65. Kf1 {[%clk
0:00:02.3]} 65... Ra3 {[%clk 0:00:06.4]} 66. Kg1 {[%clk 0:00:03]} 66... Kg4
{[%clk 0:00:06.9]} 67. Rc8 {[%clk 0:00:03.5]} 67... g5 {[%clk 0:00:07.8]} 68.
Rc4+ {[%clk 0:00:02.9]} 68... Kh5 {[%clk 0:00:08.7]} 69. Rc2 {[%clk 0:00:03.2]}
69... Ra6 {[%clk 0:00:09]} 70. Rh2+ {[%clk 0:00:03.5]} 70... Kg6 {[%clk
0:00:09.4]} 71. Rg2 {[%clk 0:00:04.1]} 71... Rf6 {[%clk 0:00:09.9]} 72. Re2
{[%clk 0:00:04.2]} 72... Rf4 {[%clk 0:00:10.8]} 73. Ra2 {[%clk 0:00:04.7]} 73...
Kf5 {[%clk 0:00:11.7]} 74. Ra3 {[%clk 0:00:04.6]} 74... Kg4 {[%clk 0:00:12.6]}
75. Kg2 {[%clk 0:00:04.8]} 75... Rf3 {[%clk 0:00:13.5]} 76. Rxf3 {[%clk
0:00:03.5]} 76... Kh4 {[%clk 0:00:13.9]} 77. Ra3 {[%clk 0:00:03.4]} 77... g4
{[%clk 0:00:14.8]} 78. Ra8 {[%clk 0:00:03.6]} 1-0

[Event "*** Titled Tuesday Blitz"]
[Site "Chess.com"]
[Date "2021.02.09"]
[Round "9"]
[White "northridgehawk"]
[Black "MerryPoppies"]
[Result "1-0"]
[WhiteElo "2330"]
[BlackElo "2166"]
[TimeControl "180+1"]
[EndTime "11:46:20 PST"]
[Termination "northridgehawk won by checkmate"]

1. e4 {[%clk 0:03:00.9]} 1... e5 {[%clk 0:02:59.7]} 2. Nf3 {[%clk 0:03:00.9]}
2... Nf6 {[%clk 0:02:59.9]} 3. g3 {[%clk 0:03:01.1]} 3... Nc6 {[%clk 0:02:59]}
4. d3 {[%clk 0:02:58.7]} 4... Bc5 {[%clk 0:02:58]} 5. Bg2 {[%clk 0:02:58.7]}
5... O-O {[%clk 0:02:57.9]} 6. O-O {[%clk 0:02:58.4]} 6... d5 {[%clk 0:02:57.7]}
7. Qe2 {[%clk 0:02:53.3]} 7... Bg4 {[%clk 0:02:54.1]} 8. c3 {[%clk 0:02:50.1]}
8... Re8 {[%clk 0:02:46.6]} 9. h3 {[%clk 0:02:49.2]} 9... Bh5 {[%clk 0:02:45.4]}
10. g4 {[%clk 0:02:46.7]} 10... Bg6 {[%clk 0:02:45.4]} 11. Nbd2 {[%clk
0:02:45.6]} 11... d4 {[%clk 0:02:28.6]} 12. Nc4 {[%clk 0:02:37.4]} 12... b5
{[%clk 0:02:17.3]} 13. Ncd2 {[%clk 0:02:30.6]} 13... h6 {[%clk 0:01:57.9]} 14.
a4 {[%clk 0:02:27.6]} 14... b4 {[%clk 0:01:50.7]} 15. Nb3 {[%clk 0:02:25.2]}
15... Bf8 {[%clk 0:01:41.2]} 16. c4 {[%clk 0:02:24.9]} 16... a5 {[%clk
0:01:30.3]} 17. Nh2 {[%clk 0:02:15.5]} 17... Nd7 {[%clk 0:01:09.5]} 18. f4
{[%clk 0:02:09.1]} 18... exf4 {[%clk 0:01:05.6]} 19. Bxf4 {[%clk 0:02:10]} 19...
Nc5 {[%clk 0:00:55.7]} 20. Nd2 {[%clk 0:02:02.6]} 20... Ne5 {[%clk 0:00:50.5]}
21. Bxe5 {[%clk 0:01:55.6]} 21... Rxe5 {[%clk 0:00:51.4]} 22. Ndf3 {[%clk
0:01:56]} 22... Re8 {[%clk 0:00:50.8]} 23. Rf2 {[%clk 0:01:52.8]} 23... Bd6
{[%clk 0:00:48.7]} 24. Raf1 {[%clk 0:01:49.9]} 24... Bf4 {[%clk 0:00:46.6]} 25.
Kh1 {[%clk 0:01:48.5]} 25... Be3 {[%clk 0:00:46]} 26. e5 {[%clk 0:01:41.8]}
26... Bxf2 {[%clk 0:00:43.6]} 27. Rxf2 {[%clk 0:01:39.5]} 27... Nxa4 {[%clk
0:00:43.2]} 28. Qf1 {[%clk 0:01:35.7]} 28... Nc5 {[%clk 0:00:42.7]} 29. Ne1
{[%clk 0:01:33.5]} 29... Rb8 {[%clk 0:00:40]} 30. Nhf3 {[%clk 0:01:27.3]} 30...
a4 {[%clk 0:00:39.4]} 31. Nd2 {[%clk 0:01:23.4]} 31... a3 {[%clk 0:00:38.3]} 32.
Bd5 {[%clk 0:01:13.6]} 32... a2 {[%clk 0:00:31.7]} 33. Rxf7 {[%clk 0:00:54.9]}
33... Qxd5+ {[%clk 0:00:25.2]} 34. cxd5 {[%clk 0:00:46.9]} 34... Bxf7 {[%clk
0:00:21]} 35. Nc2 {[%clk 0:00:45.7]} 35... Bxd5+ {[%clk 0:00:20.9]} 36. Kh2
{[%clk 0:00:45.2]} 36... b3 {[%clk 0:00:20.9]} 37. Na1 {[%clk 0:00:44.1]} 37...
Rf8 {[%clk 0:00:21.2]} 38. Qe2 {[%clk 0:00:41.2]} 38... Rbe8 {[%clk 0:00:20.8]}
39. Kg3 {[%clk 0:00:39.7]} 39... Na4 {[%clk 0:00:20.5]} 40. Ndxb3 {[%clk
0:00:38.3]} 40... Rf3+ {[%clk 0:00:19]} 41. Kh2 {[%clk 0:00:35.6]} 41... Ref8
{[%clk 0:00:19.3]} 42. Kg1 {[%clk 0:00:33.1]} 42... Nxb2 {[%clk 0:00:13.6]} 43.
Qxb2 {[%clk 0:00:22]} 43... Rf1+ {[%clk 0:00:13.7]} 44. Kh2 {[%clk 0:00:21.6]}
44... R8f2+ {[%clk 0:00:13.2]} 45. Qxf2 {[%clk 0:00:21]} 45... Rxf2+ {[%clk
0:00:14.1]} 46. Kg3 {[%clk 0:00:21.3]} 46... Rb2 {[%clk 0:00:14.3]} 47. Nxd4
{[%clk 0:00:20.4]} 47... Rb1 {[%clk 0:00:14.4]} 48. Nac2 {[%clk 0:00:20.4]}
48... a1=Q {[%clk 0:00:14.2]} 49. Nxa1 {[%clk 0:00:20.7]} 49... Rxa1 {[%clk
0:00:15.1]} 50. Nf5 {[%clk 0:00:20.5]} 50... Bf7 {[%clk 0:00:14.6]} 51. d4
{[%clk 0:00:20.3]} 51... Ra3+ {[%clk 0:00:14.5]} 52. Kf4 {[%clk 0:00:20.2]}
52... Ra4 {[%clk 0:00:14.9]} 53. Ke4 {[%clk 0:00:21.1]} 53... g6 {[%clk
0:00:14.9]} 54. Nxh6+ {[%clk 0:00:20.7]} 54... Kg7 {[%clk 0:00:15.3]} 55. g5
{[%clk 0:00:21.6]} 55... Be6 {[%clk 0:00:14.5]} 56. h4 {[%clk 0:00:21]} 56...
Bf5+ {[%clk 0:00:14.9]} 57. Kd5 {[%clk 0:00:18.9]} 57... Ra5+ {[%clk 0:00:14.8]}
58. Kc4 {[%clk 0:00:18.9]} 58... Ra1 {[%clk 0:00:14.5]} 59. h5 {[%clk
0:00:18.9]} 59... Rf1 {[%clk 0:00:12.9]} 60. hxg6 {[%clk 0:00:18.9]} 60... Bxg6
{[%clk 0:00:12.8]} 61. Ng4 {[%clk 0:00:18.7]} 61... Bf7+ {[%clk 0:00:12.9]} 62.
Kc5 {[%clk 0:00:18.1]} 62... Rc1+ {[%clk 0:00:12.9]} 63. Kb5 {[%clk 0:00:17.6]}
63... Be6 {[%clk 0:00:13]} 64. Nf6 {[%clk 0:00:17.5]} 64... Kg6 {[%clk
0:00:12.9]} 65. d5 {[%clk 0:00:17.3]} 65... Kxg5 {[%clk 0:00:12.4]} 66. dxe6
{[%clk 0:00:17]} 66... Re1 {[%clk 0:00:12]} 67. Nd7 {[%clk 0:00:16.6]} 67... Kf5
{[%clk 0:00:11.4]} 68. e7 {[%clk 0:00:16.8]} 68... Ke6 {[%clk 0:00:09.5]} 69.
e8=Q+ {[%clk 0:00:16.9]} 69... Kd5 {[%clk 0:00:09.5]} 70. Nf6+ {[%clk
0:00:17.1]} 70... Kd4 {[%clk 0:00:09.4]} 71. Qc6 {[%clk 0:00:17]} 71... Rxe5+
{[%clk 0:00:09.2]} 72. Ka6 {[%clk 0:00:16]} 72... Re1 {[%clk 0:00:08.3]} 73.
Qxc7 {[%clk 0:00:15.3]} 73... Ra1+ {[%clk 0:00:08.1]} 74. Kb5 {[%clk 0:00:15.2]}
74... Rb1+ {[%clk 0:00:08.5]} 75. Ka4 {[%clk 0:00:15.2]} 75... Ra1+ {[%clk
0:00:08.8]} 76. Kb3 {[%clk 0:00:15.5]} 76... Rb1+ {[%clk 0:00:09.2]} 77. Kc2
{[%clk 0:00:15.1]} 77... Rb4 {[%clk 0:00:09.5]} 78. Qd6+ {[%clk 0:00:13.5]}
78... Kc4 {[%clk 0:00:09.5]} 79. Qd5# {[%clk 0:00:11.8]} 1-0

[Event "*** Titled Tuesday Blitz"]
[Site "Chess.com"]
[Date "2021.02.09"]
[Round "9"]
[White "OlifantCZ"]
[Black "ChessFighter1975"]
[Result "1-0"]
[WhiteElo "2281"]
[BlackElo "2399"]
[TimeControl "180+1"]
[EndTime "11:46:24 PST"]
[Termination "OlifantCZ won by checkmate"]

1. c4 {[%clk 0:03:00.9]} 1... d6 {[%clk 0:02:59.3]} 2. g3 {[%clk 0:03:01.1]}
2... Nf6 {[%clk 0:02:58.9]} 3. Bg2 {[%clk 0:03:01.4]} 3... g6 {[%clk 0:02:59.4]}
4. Nc3 {[%clk 0:02:59.6]} 4... Bg7 {[%clk 0:02:59.9]} 5. e4 {[%clk 0:03:00.3]}
5... O-O {[%clk 0:03:00.4]} 6. Nge2 {[%clk 0:03:00.8]} 6... e5 {[%clk
0:03:00.6]} 7. O-O {[%clk 0:03:00.7]} 7... c5 {[%clk 0:03:01.2]} 8. h3 {[%clk
0:03:00.4]} 8... Nc6 {[%clk 0:03:01.5]} 9. d3 {[%clk 0:03:00.7]} 9... Nd4 {[%clk
0:03:01.8]} 10. Nxd4 {[%clk 0:02:59.9]} 10... cxd4 {[%clk 0:03:01.7]} 11. Ne2
{[%clk 0:02:52.7]} 11... Nh5 {[%clk 0:02:57.1]} 12. g4 {[%clk 0:02:48.2]} 12...
Nf6 {[%clk 0:02:49.9]} 13. f4 {[%clk 0:02:48.1]} 13... Nd7 {[%clk 0:02:43.8]}
14. f5 {[%clk 0:02:45.4]} 14... f6 {[%clk 0:02:43.8]} 15. b4 {[%clk 0:02:42.1]}
15... a5 {[%clk 0:02:43.2]} 16. b5 {[%clk 0:02:42.1]} 16... a4 {[%clk
0:02:38.6]} 17. Bb2 {[%clk 0:02:08.8]} 17... Nc5 {[%clk 0:02:34]} 18. Ba3 {[%clk
0:02:05.6]} 18... Bh6 {[%clk 0:02:31.4]} 19. Bc1 {[%clk 0:02:02.2]} 19... Bg7
{[%clk 0:02:21.3]} 20. h4 {[%clk 0:01:56.7]} 20... a3 {[%clk 0:02:11.9]} 21. Ng3
{[%clk 0:01:55.6]} 21... Na4 {[%clk 0:02:06.9]} 22. Bh3 {[%clk 0:01:47.5]} 22...
Nc3 {[%clk 0:02:06.7]} 23. Qf3 {[%clk 0:01:42.1]} 23... gxf5 {[%clk 0:01:41.1]}
24. gxf5 {[%clk 0:01:25.4]} 24... Kh8 {[%clk 0:01:37.1]} 25. Kh2 {[%clk
0:01:24.6]} 25... Rg8 {[%clk 0:01:36.3]} 26. Rg1 {[%clk 0:01:22]} 26... Bd7
{[%clk 0:01:16.6]} 27. Bd2 {[%clk 0:01:09.9]} 27... Be8 {[%clk 0:01:07.7]} 28.
Ne2 {[%clk 0:01:09.7]} 28... Nxe2 {[%clk 0:01:06.6]} 29. Qxe2 {[%clk 0:01:09.3]}
29... Qe7 {[%clk 0:01:05.2]} 30. Rg2 {[%clk 0:01:00.9]} 30... Qf7 {[%clk
0:01:00.3]} 31. Rag1 {[%clk 0:00:58.3]} 31... Qh5 {[%clk 0:01:00.6]} 32. Rg4
{[%clk 0:00:53.8]} 32... Bf7 {[%clk 0:00:53.8]} 33. Bb4 {[%clk 0:00:53.1]} 33...
Bh6 {[%clk 0:00:43.6]} 34. Bxd6 {[%clk 0:00:49.9]} 34... Bf4+ {[%clk 0:00:40.3]}
35. Kh1 {[%clk 0:00:49.3]} 35... Rxg4 {[%clk 0:00:33.8]} 36. Qxg4 {[%clk
0:00:48.5]} 36... Qh6 {[%clk 0:00:32.6]} 37. Qf3 {[%clk 0:00:16.9]} 37... Rg8
{[%clk 0:00:31.7]} 38. Bxa3 {[%clk 0:00:15.1]} 38... Qxh4 {[%clk 0:00:29.9]} 39.
Rxg8+ {[%clk 0:00:14]} 39... Bxg8 {[%clk 0:00:30.8]} 40. Be7 {[%clk 0:00:12.9]}
40... Kg7 {[%clk 0:00:28.3]} 41. Qg4+ {[%clk 0:00:11.8]} 41... Qxg4 {[%clk
0:00:27.6]} 42. Bxg4 {[%clk 0:00:11.4]} 42... Bg5 {[%clk 0:00:26]} 43. a4 {[%clk
0:00:09.7]} 43... Bf7 {[%clk 0:00:26.1]} 44. c5 {[%clk 0:00:08.8]} 44... h5
{[%clk 0:00:26.1]} 45. Bd1 {[%clk 0:00:08.8]} 45... Be8 {[%clk 0:00:26.2]} 46.
Bb3 {[%clk 0:00:08.2]} 46... Bd2 {[%clk 0:00:22.2]} 47. Bd5 {[%clk 0:00:06.4]}
47... Ba5 {[%clk 0:00:18.9]} 48. Bxb7 {[%clk 0:00:06.4]} 48... Kf7 {[%clk
0:00:19.8]} 49. Bd6 {[%clk 0:00:06.3]} 49... h4 {[%clk 0:00:18.8]} 50. Bd5+
{[%clk 0:00:05.4]} 50... Kg7 {[%clk 0:00:18.2]} 51. b6 {[%clk 0:00:05.9]} 51...
Bxa4 {[%clk 0:00:14.2]} 52. b7 {[%clk 0:00:05.8]} 52... Bd1 {[%clk 0:00:15.1]}
53. b8=Q {[%clk 0:00:05.5]} 53... Bf3+ {[%clk 0:00:16]} 54. Kh2 {[%clk
0:00:05.9]} 54... Kh6 {[%clk 0:00:16.4]} 55. Qf8+ {[%clk 0:00:05.7]} 55... Kg5
{[%clk 0:00:17.3]} 56. Qg7+ {[%clk 0:00:05.3]} 56... Kf4 {[%clk 0:00:18.2]} 57.
Qxf6 {[%clk 0:00:05.6]} 57... Ke3 {[%clk 0:00:18.4]} 58. Qxh4 {[%clk 0:00:05.7]}
58... Bd2 {[%clk 0:00:17.7]} 59. Bxe5 {[%clk 0:00:05.8]} 59... Ke2 {[%clk
0:00:17.7]} 60. Bg3 {[%clk 0:00:05.3]} 60... Kxd3 {[%clk 0:00:16.2]} 61. f6
{[%clk 0:00:05]} 61... Be3 {[%clk 0:00:13.5]} 62. f7 {[%clk 0:00:04.8]} 62...
Ke2 {[%clk 0:00:14.4]} 63. f8=Q {[%clk 0:00:04.7]} 63... d3 {[%clk 0:00:15.3]}
64. Bc4 {[%clk 0:00:03.9]} 64... Kd2 {[%clk 0:00:14.8]} 65. Bxd3 {[%clk
0:00:03.8]} 65... Kxd3 {[%clk 0:00:15.7]} 66. Qd6+ {[%clk 0:00:03.8]} 66... Ke2
{[%clk 0:00:16.6]} 67. e5 {[%clk 0:00:04.2]} 67... Bg1+ {[%clk 0:00:15.3]} 68.
Kxg1 {[%clk 0:00:03]} 68... Bd5 {[%clk 0:00:15.2]} 69. Qxd5 {[%clk 0:00:03.2]}
69... Ke3 {[%clk 0:00:15.7]} 70. Qdd4+ {[%clk 0:00:03.5]} 70... Ke2 {[%clk
0:00:15.8]} 71. Qhe4# {[%clk 0:00:04]} 1-0